bitfinex/quotes_BTCUSD_20250711
["timestamp","ask_amount","ask_price","bid_price","bid_amount"]
[1752226710256,0.37110068,118660.0,118650.0,0.296]
[1752226711327,0.36265085,118660.0,118650.0,0.29815]
[1752226711747,0.343,118660.0,118650.0,0.29815]
[1752226713031,0.34793,118660.0,118630.0,0.2880934]
[1752226713245,0.34793,118660.0,118640.0,0.08542993]
[1752226714112,0.34793,118660.0,118650.0,0.29364]
[1752226715222,0.34793,118660.0,118650.0,0.29579]
[1752226715444,0.343,118660.0,118650.0,0.29579]
[1752226715845,0.34498,118660.0,118650.0,0.29579]
[1752226717512,0.34498,118660.0,118650.0,0.39579]
[1752226717764,0.34793,118660.0,118650.0,0.39579]
[1752226718513,0.003,118660.0,118650.0,0.39579]
[1752226719772,0.00498,118660.0,118650.0,0.39579]
[1752226719976,0.00793,118660.0,118650.0,0.39579]
[1752226721206,0.00793,118660.0,118650.0,0.39364]
[1752226724086,0.36247085,118660.0,118650.0,0.39364]
[1752226724299,0.48400078,118660.0,118650.0,0.091579]
[1752226724502,0.50159038,118660.0,118650.0,0.091579]
[1752226724700,0.64763038,118660.0,118650.0,0.083158]
[1752226725128,0.64763038,118660.0,118650.0,0.074737]
[1752226725548,0.65605732,118660.0,118650.0,0.066316]
[1752226725715,0.64763038,118660.0,118650.0,0.066316]
[1752226725922,0.65605725,118660.0,118650.0,0.057895]
[1752226726137,0.64763038,118660.0,118650.0,0.057895]
[1752226726339,0.64763038,118660.0,118650.0,0.049474]
[1752226726563,0.63004078,118660.0,118650.0,0.049474]
[1752226730049,0.63004078,118660.0,118650.0,0.041053]
[1752226730398,0.63004078,118660.0,118650.0,0.032632]
[1752226730599,0.63004078,118660.0,118650.0,0.024211]
[1752226731263,0.63004078,118660.0,118650.0,0.01579]
[1752226731479,0.34498,118660.0,118650.0,0.30822]
[1752226731882,0.34793,118660.0,118650.0,0.30822]
[1752226732287,0.36247085,118660.0,118650.0,0.30822]
[1752226733283,0.36247085,118660.0,118650.0,0.30607]
[1752226734310,0.39927085,118660.0,118650.0,0.30607]
[1752226734547,0.54403085,118660.0,118650.0,0.01579]
[1752226734764,0.52543085,118660.0,118650.0,0.01579]
[1752226736395,0.38067085,118660.0,118650.0,0.01579]
[1752226736834,0.40037085,118660.0,118650.0,0.01579]
[1752226737057,0.50265487,118660.0,118650.0,0.00736742]
[1752226737283,0.11859622,118650.0,118640.0,0.01660138]
[1752226737500,0.86218971,118650.0,118640.0,0.0081788]
[1752226737716,0.69362629,118650.0,118640.0,0.0081788]
[1752226737954,0.10174085,118640.0,118630.0,0.19157742]
[1752226738166,0.18717078,118640.0,118630.0,0.19157742]
[1752226738383,0.19233078,118640.0,118630.0,0.18315457]
[1752226738610,0.14233078,118640.0,118630.0,0.18315457]
[1752226738846,0.01970085,118640.0,118630.0,0.18523457]
[1752226739080,0.01454085,118640.0,118630.0,0.18523457]
[1752226739312,0.34,118640.0,118630.0,0.3381779]
[1752226739533,0.34211,118640.0,118630.0,0.25274797]
[1752226739758,0.34516,118640.0,118630.0,0.25274797]
[1752226740209,0.37035023,118640.0,118630.0,0.25066797]
[1752226740439,0.38489108,118640.0,118630.0,0.18315457]
[1752226742980,0.003,118660.0,118640.0,0.0194]
[1752226743203,0.003,118660.0,118650.0,0.24858993]
[1752226745376,0.003,118660.0,118650.0,0.10482993]
[1752226745593,0.003,118660.0,118650.0,0.24846993]
[1752226745821,0.003,118660.0,118650.0,0.10482993]
[1752226746034,0.003,118660.0,118650.0,0.24854993]
[1752226746701,0.003,118660.0,118650.0,0.25062993]
[1752226747563,0.003,118660.0,118650.0,0.35062993]
[1752226749059,0.003,118660.0,118650.0,0.33122993]
[1752226749521,0.00511,118660.0,118650.0,0.2458]
[1752226749729,0.00511,118660.0,118650.0,0.24536]
[1752226749949,0.01965085,118660.0,118650.0,0.1]
[1752226750179,0.36270085,118660.0,118650.0,0.24324]
[1752226750437,0.02270085,118660.0,118650.0,0.24324]
[1752226751520,0.01754085,118660.0,118650.0,0.24532]
[1752226751746,0.003,118660.0,118650.0,0.24532]
[1752226751958,0.003,118660.0,118650.0,0.35142993]
[1752226752188,0.003,118660.0,118650.0,0.36992993]
[1752226753105,0.087,118670.0,118650.0,0.38669273]
[1752226753391,0.0484,118670.0,118660.0,0.50717958]
[1752226753607,0.03789961,118670.0,118660.0,0.50507273]
[1752226754036,0.01567085,118670.0,118660.0,0.50507273]
[1752226754268,0.01755,118750.0,118660.0,0.48137273]
[1752226754482,0.01755,118750.0,118690.0,0.08542993]
[1752226754704,0.0189,118760.0,118700.0,0.37942607]
[1752226754915,0.0189,118760.0,118710.0,0.00305]
[1752226755158,0.0189,118750.0,118720.0,0.37414993]
[1752226755801,0.00828674,118760.0,118730.0,0.02165]
[1752226756035,0.0193,118750.0,118740.0,0.28864]
[1752226756463,0.03689085,118750.0,118740.0,0.28864]
[1752226758056,0.0193,118750.0,118740.0,0.28864]
[1752226758499,0.0193,118750.0,118740.0,0.37406993]
[1752226758735,0.04507002,118760.0,118740.0,0.37406993]
[1752226759171,0.03679085,118750.0,118740.0,0.28864]
[1752226759384,0.05529085,118750.0,118740.0,0.28864]
[1752226760484,0.05520875,118750.0,118740.0,0.28864]
[1752226760701,0.019,118730.0,118700.0,0.2726834]
[1752226760913,0.019,118730.0,118710.0,0.22966993]
[1752226761341,0.019,118740.0,118720.0,0.00313]
[1752226761562,0.34827917,118760.0,118730.0,0.22962993]
[1752226761563,0.36727917,118760.0,118730.0,0.22962993]
[1752226761805,0.02727917,118760.0,118730.0,0.24822993]
[1752226762029,0.02727917,118760.0,118740.0,0.00313]
[1752226762245,0.02727917,118760.0,118750.0,0.1442]
[1752226762453,0.02727917,118760.0,118750.0,0.22962993]
[1752226762663,0.359,118770.0,118750.0,0.23275993]
[1752226762881,0.00305,118760.0,118740.0,0.28916]
[1752226763115,0.05194085,118750.0,118740.0,0.28916]
[1752226763326,0.05499085,118750.0,118740.0,0.28916]
[1752226763543,0.019,118730.0,118700.0,0.2726834]
[1752226763767,0.019,118720.0,118710.0,0.22998993]
[1752226764199,0.019,118720.0,118710.0,0.08542993]
[1752226764410,0.019,118720.0,118700.0,0.2695534]
[1752226764616,0.02205,118720.0,118710.0,0.14448]
[1752226765265,0.02205,118720.0,118700.0,0.29738333]
[1752226765524,0.02205,118720.0,118700.0,0.2119534]
[1752226765525,0.0191,118710.0,118700.0,0.2119534]
[1752226765792,0.05471085,118710.0,118700.0,0.14444]
[1752226766015,0.0182,118700.0,118690.0,0.14436]
[1752226766449,0.02127,118700.0,118690.0,0.14436]
[1752226767585,0.03937,118700.0,118690.0,0.14436]
[1752226769314,0.02127,118700.0,118690.0,0.14436]
[1752226769857,0.03987,118700.0,118690.0,0.14436]
[1752226770934,0.03987,118700.0,118690.0,0.20363592]
[1752226770935,0.05441085,118700.0,118690.0,0.20363592]
[1752226772430,0.05441085,118700.0,118690.0,0.05927592]
[1752226772645,0.05441085,118700.0,118690.0,0.20315592]
[1752226774152,0.05636085,118700.0,118690.0,0.20315592]
[1752226774368,0.03776085,118700.0,118690.0,0.20325887]
[1752226774582,0.03776085,118700.0,118690.0,0.14388]
[1752226774790,0.03776085,118700.0,118690.0,0.20325771]
[1752226775024,0.03776085,118700.0,118690.0,0.05937771]
[1752226775025,0.05756085,118700.0,118690.0,0.05937771]
[1752226775240,0.4517409,118700.0,118690.0,0.05937771]
[1752226775451,0.06106552,118690.0,118680.0,0.05032111]
[1752226775663,0.28799659,118690.0,118680.0,0.05032111]
[1752226775878,0.05264085,118670.0,118660.0,0.14372]
[1752226776098,0.0381,118660.0,118650.0,0.1]
[1752226776322,0.0381,118660.0,118650.0,0.24368]
[1752226776323,0.3781,118660.0,118650.0,0.24368]
[1752226776536,0.38117,118660.0,118650.0,0.1]
[1752226777831,0.38117,118660.0,118650.0,0.14458709]
[1752226778869,0.36137,118660.0,118650.0,0.14458709]
[1752226779077,0.36137,118660.0,118650.0,0.21210049]
[1752226779288,0.36137,118660.0,118650.0,0.1675134]
[1752226779510,0.3583,118660.0,118650.0,0.1675134]
[1752226779739,0.34,118660.0,118650.0,0.1675134]
[1752226779948,0.3586,118660.0,118650.0,0.28796201]
[1752226780164,0.38057,118660.0,118650.0,0.28796201]
[1752226780585,0.39511085,118660.0,118650.0,0.1]
[1752226781036,0.37314085,118660.0,118650.0,0.14455904]
[1752226781238,0.37314085,118660.0,118650.0,0.1]
[1752226781449,0.37314085,118660.0,118650.0,0.1445576]
[1752226781668,0.37314085,118660.0,118650.0,0.212071]
[1752226781876,0.34,118660.0,118650.0,0.215111]
[1752226782091,0.34,118660.0,118650.0,0.1705534]
[1752226782532,0.34,118660.0,118650.0,0.1]
[1752226782746,0.34,118660.0,118650.0,0.1445535]
[1752226782946,0.3585,118660.0,118650.0,0.1445535]
[1752226783148,0.3585,118660.0,118650.0,0.1]
[1752226784217,0.3585,118660.0,118650.0,0.14662528]
[1752226785470,0.3585,118660.0,118650.0,0.16146233]
[1752226785879,0.4197,118670.0,118650.0,0.24993226]
[1752226786315,0.7597,118670.0,118660.0,0.14288]
[1752226786522,0.7597,118670.0,118660.0,0.14497]
[1752226786733,0.00081,118660.0,118650.0,0.17747233]
[1752226786939,0.00081,118660.0,118650.0,0.20352993]
[1752226787052,0.00081,118660.0,118650.0,0.26455951]
[1752226787264,0.00081,118660.0,118650.0,0.26559951]
[1752226787482,0.00081,118660.0,118650.0,0.20622993]
[1752226787935,0.00081,118660.0,118650.0,0.49174993]
[1752226788354,0.00081,118660.0,118650.0,0.5659748]
[1752226788985,0.00081,118660.0,118650.0,0.5703148]
[1752226789193,0.00307,118720.0,118650.0,0.51643493]
[1752226789401,0.02267,118720.0,118700.0,0.04452194]
[1752226789614,0.02267,118720.0,118710.0,0.2856]
[1752226790031,0.02797998,118720.0,118710.0,0.41555187]
[1752226790574,0.03104998,118720.0,118710.0,0.33012194]
[1752226790786,0.37104998,118720.0,118710.0,0.33012194]
[1752226792059,0.36797998,118720.0,118710.0,0.33012194]
[1752226792278,0.37104998,118720.0,118710.0,0.33012194]
[1752226792468,0.37104998,118720.0,118710.0,0.2856]
[1752226792733,0.34,118720.0,118710.0,0.37102993]
[1752226792946,0.03551085,118740.0,118710.0,0.43039252]
[1752226793163,0.02097,118740.0,118720.0,0.13001051]
[1752226793335,0.02097,118740.0,118730.0,0.28496]
[1752226793790,0.02097,118740.0,118730.0,0.32954058]
[1752226793999,0.02097,118740.0,118730.0,0.28496]
[1752226794340,0.0179,118740.0,118730.0,0.28496]
[1752226794544,0.0179,118740.0,118730.0,0.34432259]
[1752226794933,0.02097,118740.0,118730.0,0.34432259]
[1752226795242,0.04836817,118740.0,118730.0,0.34432259]
[1752226795468,0.00819817,118740.0,118730.0,0.34432259]
[1752226795671,0.00324,118750.0,118730.0,0.42975252]
[1752226795877,0.02144,118750.0,118740.0,0.04458216]
[1752226796122,0.0182,118740.0,118730.0,0.34432259]
[1752226796499,0.02144,118740.0,118730.0,0.34432259]
[1752226798799,0.0182,118740.0,118730.0,0.34432259]
[1752226799000,0.02955145,118750.0,118730.0,0.43141252]
[1752226799443,0.02955145,118750.0,118740.0,0.04450671]
[1752226799667,0.0178,118750.0,118740.0,0.14645252]
[1752226800864,0.0178,118750.0,118740.0,0.08708993]
[1752226801070,0.0196,118740.0,118730.0,0.28496]
[1752226801341,0.02492,118740.0,118730.0,0.37038993]
[1752226802092,0.02492,118740.0,118730.0,0.28496]
[1752226802734,0.05846085,118740.0,118730.0,0.28496]
[1752226804353,0.05846085,118740.0,118710.0,0.12687599]
[1752226804553,0.02124,118730.0,118720.0,0.14136]
[1752226804754,0.02332,118730.0,118720.0,0.14136]
[1752226805197,0.00532,118730.0,118710.0,0.14479252]
[1752226805416,0.02284,118720.0,118700.0,0.13356583]
[1752226805609,0.02284,118720.0,118710.0,0.14136]
[1752226805826,0.02492,118720.0,118710.0,0.14136]
[1752226806937,0.0196,118710.0,118700.0,0.14479252]
[1752226807145,0.02168,118710.0,118700.0,0.22678993]
[1752226807301,0.02492,118710.0,118690.0,0.12687599]
[1752226807501,0.0196,118700.0,118690.0,0.14479252]
[1752226807764,0.0196,118700.0,118690.0,0.28777252]
[1752226809825,0.02492,118700.0,118690.0,0.28777252]
[1752226810032,0.0192,118690.0,118680.0,0.05936259]
[1752226810237,0.0192,118690.0,118680.0,0.28765252]
[1752226812574,0.0192,118690.0,118680.0,0.12936259]
[1752226812575,0.05786085,118690.0,118680.0,0.12936259]
[1752226812831,0.05786085,118690.0,118680.0,0.14112]
[1752226813297,0.03906085,118690.0,118680.0,0.14112]
[1752226814104,0.05716085,118690.0,118680.0,0.14112]
[1752226814318,0.01986085,118690.0,118660.0,0.20204]
[1752226814529,0.01986085,118690.0,118650.0,0.17420324]
[1752226814530,0.0189,118670.0,118650.0,0.1]
[1752226814738,0.02098,118660.0,118650.0,0.1]
[1752226814938,0.02098,118660.0,118650.0,0.24282]
[1752226815850,0.04242,118660.0,118650.0,0.1]
[1752226816078,0.04242,118660.0,118650.0,0.24112]
[1752226817508,0.05696085,118660.0,118650.0,0.24112]
[1752226818080,0.05696085,118660.0,118650.0,0.1]
[1752226820094,0.12381473,118660.0,118650.0,0.1]
[1752226820306,0.21767181,118660.0,118650.0,0.1]
[1752226820510,0.20924466,118660.0,118650.0,0.1]
[1752226820928,0.19239078,118660.0,118650.0,0.1]
[1752226821439,0.33323078,118660.0,118650.0,0.1]
[1752226821687,0.75206369,118660.0,118650.0,0.1]
[1752226821933,0.76049105,118660.0,118650.0,0.1]
[1752226822126,0.69851174,118660.0,118650.0,0.1]
[1752226822758,0.7069391,118660.0,118650.0,0.1]
[1752226822998,0.85863408,118660.0,118650.0,0.1]
[1752226823201,0.85863408,118660.0,118650.0,0.09157787]
[1752226823645,0.53239078,118660.0,118650.0,0.08315574]
[1752226823843,0.67311078,118660.0,118650.0,0.08315574]
[1752226824052,0.73303985,118660.0,118650.0,0.08315574]
[1752226825073,0.67311078,118660.0,118650.0,0.08315574]
[1752226825695,0.66779078,118660.0,118650.0,0.08315574]
[1752226826137,0.67621765,118660.0,118650.0,0.08315574]
[1752226826474,0.84476644,118660.0,118650.0,0.08315574]
[1752226826679,0.69307202,118660.0,118650.0,0.08315574]
[1752226826904,0.77007466,118660.0,118650.0,0.08315574]
[1752226827318,0.77850188,118660.0,118650.0,0.08315574]
[1752226827722,0.77007459,118660.0,118650.0,0.08315574]
[1752226827922,0.77007452,118660.0,118650.0,0.08315574]
[1752226828338,0.78692875,118660.0,118650.0,0.08315574]
[1752226828551,0.77850153,118660.0,118650.0,0.08315574]
[1752226828991,0.7953559,118660.0,118650.0,0.08315574]
[1752226829562,0.94705088,118660.0,118650.0,0.08315574]
[1752226829765,0.93862387,118660.0,118650.0,0.08315574]
[1752226829964,0.93862387,118660.0,118650.0,0.07263506]
[1752226830372,0.93862387,118660.0,118650.0,0.06753506]
[1752226831002,0.95738014,118660.0,118650.0,0.06753506]
[1752226831798,0.95738014,118660.0,118650.0,0.05911166]
[1752226832204,0.95738014,118660.0,118650.0,0.05068826]
[1752226832670,0.95738014,118660.0,118650.0,0.04226362]
[1752226833087,0.95738014,118660.0,118630.0,0.25066797]
[1752226833088,0.476055,118640.0,118630.0,0.25066797]
[1752226833292,0.92657705,118640.0,118630.0,0.25066797]
[1752226833621,0.91814862,118640.0,118630.0,0.18315457]
[1752226834853,0.85368548,118640.0,118630.0,0.18315457]
[1752226835427,0.87936631,118640.0,118630.0,0.18315457]
[1752226837747,0.87936631,118640.0,118630.0,0.17472993]
[1752226838168,0.87936631,118640.0,118630.0,0.16630529]
[1752226838525,0.87936631,118640.0,118630.0,0.15788065]
[1752226838850,0.96479624,118640.0,118630.0,0.14945535]
[1752226839055,1.21479624,118640.0,118630.0,0.14945535]
[1752226839261,1.21479624,118640.0,118630.0,0.14103005]
[1752226839699,1.26479624,118640.0,118630.0,0.13260475]
[1752226840115,1.26479624,118640.0,118630.0,0.12417945]
[1752226840534,1.12431624,118640.0,118630.0,0.11575415]
[1752226840743,1.26443624,118640.0,118630.0,0.11575415]
[1752226840958,1.12900631,118640.0,118630.0,0.10732885]
[1752226841366,1.17900631,118640.0,118630.0,0.09890355]
[1752226841573,1.17900631,118640.0,118630.0,0.09047825]
[1752226841986,1.12900631,118640.0,118630.0,0.08205295]
[1752226842209,1.17900631,118640.0,118630.0,0.08205295]
[1752226842419,1.26443624,118640.0,118630.0,0.07362765]
[1752226842832,1.28319251,118640.0,118630.0,0.0357138]
[1752226843036,1.37186251,118640.0,118630.0,0.0313138]
[1752226843283,0.63156168,118630.0,118620.0,0.0111441]
[1752226843480,0.75409161,118630.0,118620.0,0.0111441]
[1752226843672,0.75409161,118630.0,118620.0,0.0027188]
[1752226843673,0.83952154,118630.0,118620.0,0.0027188]
[1752226844098,0.62712245,118610.0,118600.0,0.0004]
[1752226844316,0.85251238,118610.0,118600.0,0.0004]
[1752226844529,0.08264085,118590.0,118580.0,0.0675134]
[1752226844766,0.64795078,118590.0,118580.0,0.0675134]
[1752226845191,0.66481467,118590.0,118580.0,0.0675134]
[1752226845409,0.65638262,118590.0,118580.0,0.0675134]
[1752226845624,0.64795078,118590.0,118580.0,0.0675134]
[1752226845843,0.65638262,118590.0,118580.0,0.0675134]
[1752226846260,0.6648146,118590.0,118580.0,0.0675134]
[1752226846478,0.6648146,118590.0,118570.0,0.1667]
[1752226846479,0.68167907,118590.0,118570.0,0.1667]
[1752226846683,0.0193,118580.0,118570.0,0.1667]
[1752226847363,0.15472993,118580.0,118570.0,0.1667]
[1752226847583,0.52613588,118580.0,118570.0,0.1667]
[1752226847797,0.53456857,118580.0,118570.0,0.1667]
[1752226848015,0.55276857,118580.0,118570.0,0.1667]
[1752226848225,0.34,118570.0,118560.0,0.31875915]
[1752226848455,0.47972,118570.0,118560.0,0.31875915]
[1752226849104,0.49882,118570.0,118560.0,0.31875915]
[1752226849321,0.85864797,118570.0,118560.0,0.31875915]
[1752226849536,0.0448111,118520.0,118510.0,0.0004]
[1752226849795,0.76409899,118520.0,118510.0,0.0004]
[1752226850019,0.60357572,118510.0,118500.0,0.0021]
[1752226850240,0.60357572,118510.0,118390.0,0.045]
[1752226850241,0.0749516,118400.0,118390.0,0.045]
[1752226850455,0.33762461,118480.0,118420.0,0.20216]
[1752226850677,0.33762461,118480.0,118450.0,0.26989415]
[1752226850904,0.4,118500.0,118460.0,0.08542993]
[1752226851110,0.4,118500.0,118450.0,0.26989415]
[1752226851111,0.01454085,118490.0,118450.0,0.26989415]
[1752226851347,0.01454085,118490.0,118460.0,0.08542993]
[1752226851559,0.05,118510.0,118460.0,0.37858993]
[1752226851768,0.02586292,118520.0,118470.0,0.08542993]
[1752226851977,0.01454085,118510.0,118470.0,0.08542993]
[1752226852187,0.4,118510.0,118470.0,0.08542993]
[1752226852406,0.4,118510.0,118470.0,0.14998567]
[1752226852623,0.01454085,118520.0,118480.0,0.00211006]
[1752226852847,0.36526983,118530.0,118490.0,0.08542993]
[1752226853059,0.4,118520.0,118500.0,0.29524]
[1752226853295,0.4,118520.0,118500.0,0.33330699]
[1752226853577,0.4,118520.0,118500.0,0.41873692]
[1752226853787,0.17717921,118560.0,118510.0,0.08662993]
[1752226853788,0.0866,118560.0,118510.0,0.08662993]
[1752226854002,0.51202993,118560.0,118510.0,0.08873945]
[1752226854215,0.4,118550.0,118510.0,0.08873945]
[1752226854425,0.4,118550.0,118510.0,0.13094409]
[1752226854647,0.4,118550.0,118510.0,0.12883457]
[1752226854868,0.05477087,118540.0,118510.0,0.04220464]
[1752226855078,0.42007784,118540.0,118510.0,0.04220464]
[1752226855294,0.42007777,118540.0,118510.0,0.04220464]
[1752226855501,0.42007784,118540.0,118510.0,0.04220464]
[1752226855723,0.03374085,118530.0,118510.0,0.04220464]
[1752226855937,0.37607385,118520.0,118500.0,0.29524]
[1752226856192,0.50378402,118510.0,118470.0,0.0012]
[1752226856403,0.01454085,118490.0,118480.0,0.14784]
[1752226856615,0.05254085,118490.0,118480.0,0.014784]
[1752226856823,0.39254085,118490.0,118480.0,0.014784]
[1752226857471,0.39254085,118490.0,118470.0,0.14784]
[1752226857696,0.49484862,118490.0,118430.0,0.0012]
[1752226857901,0.47564862,118490.0,118440.0,0.08662993]
[1752226858113,0.038,118480.0,118440.0,0.23310993]
[1752226858331,0.038,118480.0,118440.0,0.25642092]
[1752226858541,0.038,118480.0,118450.0,0.1476]
[1752226859399,0.0379,118470.0,118440.0,0.25722092]
[1752226859822,0.34,118460.0,118440.0,0.25722092]
[1752226860046,0.34,118460.0,118440.0,0.17179099]
[1752226860480,0.3773,118460.0,118440.0,0.17179099]
[1752226861159,0.3593,118460.0,118440.0,0.17179099]
[1752226861380,0.3773,118460.0,118440.0,0.17179099]
[1752226861605,0.3773,118460.0,118440.0,0.02331099]
[1752226861823,0.3773,118460.0,118440.0,0.14864]
[1752226862765,0.3773,118460.0,118440.0,0.1486]
[1752226862971,0.3773,118460.0,118420.0,0.20336]
[1752226862972,0.038,118450.0,118430.0,0.1486]
[1752226863402,0.05224085,118440.0,118420.0,0.14876]
[1752226863612,0.05224085,118440.0,118420.0,0.163636]
[1752226863853,0.34,118430.0,118420.0,0.24906593]
[1752226864156,0.01454085,118460.0,118420.0,0.25042593]
[1752226864363,0.03254837,118460.0,118430.0,0.08542993]
[1752226864572,0.45094837,118460.0,118440.0,0.14892]
[1752226864793,0.47014837,118460.0,118440.0,0.17235499]
[1752226865707,0.05124085,118450.0,118440.0,0.02343499]
[1752226865921,0.06924837,118450.0,118430.0,0.14884]
[1752226866127,0.06924837,118450.0,118400.0,0.009]
[1752226866128,0.05084837,118450.0,118400.0,0.009]
[1752226866336,0.05084837,118450.0,118410.0,0.23426993]
[1752226866337,0.0194,118440.0,118410.0,0.23426993]
[1752226866545,0.0405,118440.0,118410.0,0.25859692]
[1752226867198,0.05849699,118440.0,118410.0,0.25859692]
[1752226868483,0.39849699,118440.0,118410.0,0.25859692]
[1752226868907,0.3805,118440.0,118410.0,0.25859692]
[1752226870022,0.3805,118440.0,118410.0,0.10975692]
[1752226870252,0.3805,118440.0,118420.0,0.14832]
[1752226871581,0.064826,118430.0,118390.0,0.009]
[1752226871786,0.064826,118430.0,118400.0,0.08542993]
[1752226872004,0.064826,118430.0,118400.0,0.23378993]
[1752226873072,0.064826,118430.0,118410.0,0.14828]
[1752226873287,0.064826,118430.0,118410.0,0.17153099]
[1752226873288,0.404826,118430.0,118410.0,0.17153099]
[1752226873492,0.404826,118430.0,118410.0,0.02337099]
[1752226873706,0.3795,118430.0,118410.0,0.14816]
[1752226873914,0.0395,118420.0,118410.0,0.14812]
[1752226874344,0.0395,118420.0,118380.0,0.009]
[1752226874576,0.0395,118420.0,118390.0,0.23354993]
[1752226874792,0.3795,118420.0,118390.0,0.08542993]
[1752226875002,0.038,118410.0,118400.0,0.14792]
[1752226875213,0.038,118410.0,118390.0,0.09487292]
[1752226875421,0.038,118410.0,118400.0,0.14788]
[1752226875667,0.038,118410.0,118400.0,0.14784]
[1752226877843,0.378,118420.0,118400.0,0.14784]
[1752226878053,0.378,118420.0,118400.0,0.17211129]
[1752226878282,0.038,118420.0,118400.0,0.17211129]
[1752226878503,0.038,118420.0,118400.0,0.27211129]
[1752226878727,0.438,118420.0,118400.0,0.27211129]
[1752226879397,0.038,118440.0,118400.0,0.35754122]
[1752226879643,0.038,118440.0,118410.0,0.08542993]
[1752226879859,0.438,118440.0,118420.0,0.14756]
[1752226880511,0.038,118440.0,118420.0,0.14756]
[1752226881138,0.038,118440.0,118410.0,0.10730005]
[1752226881351,0.0428,118430.0,118420.0,0.14748]
[1752226881765,0.0428,118430.0,118420.0,0.14744]
[1752226881975,0.0428,118430.0,118420.0,0.16433101]
[1752226882403,0.0209,118440.0,118420.0,0.16433101]
[1752226882616,0.066727,118440.0,118420.0,0.16433101]
[1752226882828,0.0414,118440.0,118420.0,0.16433101]
[1752226883930,0.068825,118450.0,118420.0,0.24976094]
[1752226884143,0.11665381,118480.0,118430.0,0.09442993]
[1752226884348,0.0417,118470.0,118440.0,0.29655077]
[1752226884557,0.4214,118470.0,118440.0,0.37986993]
[1752226884784,0.41809355,118470.0,118440.0,0.37986993]
[1752226885432,0.35811557,118470.0,118440.0,0.37986993]
[1752226885638,0.34,118470.0,118440.0,0.42220253]
[1752226885844,0.782,118470.0,118440.0,0.42220253]
[1752226886084,0.0422,118460.0,118440.0,0.42220253]
[1752226887379,0.0213,118460.0,118450.0,0.14696]
[1752226887588,0.7809,118470.0,118450.0,0.14696]
[1752226887794,0.7809,118470.0,118450.0,0.17443225]
[1752226890398,0.068718,118480.0,118450.0,0.25986218]
[1752226890608,0.0434,118480.0,118450.0,0.25986218]
[1752226890815,0.0434,118490.0,118460.0,0.08542993]
[1752226891028,0.14668,118520.0,118470.0,0.4429694]
[1752226891298,0.08542993,118510.0,118500.0,0.1047206]
[1752226891501,0.83997078,118510.0,118500.0,0.17952103]
[1752226891707,0.43997078,118510.0,118500.0,0.07480043]
[1752226891923,0.34538522,118530.0,118500.0,0.07480043]
[1752226892132,0.48542993,118520.0,118500.0,0.11160847]
[1752226892337,0.34,118510.0,118500.0,0.11159653]
[1752226892541,0.34,118510.0,118500.0,0.03680804]
[1752226892972,0.43997078,118510.0,118500.0,0.03680804]
[1752226893180,0.34840838,118510.0,118500.0,0.03680804]
[1752226893385,0.09997078,118510.0,118500.0,0.11158013]
[1752226893591,0.10840831,118510.0,118500.0,0.07477209]
[1752226893822,0.12528478,118510.0,118500.0,0.07477209]
[1752226894036,0.18605991,118510.0,118500.0,0.07477209]
[1752226894242,0.18605984,118510.0,118500.0,0.07477209]
[1752226894457,0.17762224,118510.0,118500.0,0.07477209]
[1752226894674,0.16918478,118510.0,118500.0,0.0822493]
[1752226894882,0.17762238,118510.0,118500.0,0.0822493]
[1752226895144,0.17762231,118510.0,118500.0,0.0822493]
[1752226895555,0.16918478,118510.0,118500.0,0.0822493]
[1752226897385,0.16918478,118510.0,118500.0,0.00747721]
[1752226901355,0.16918478,118510.0,118500.0,0.0822493]
[1752226901474,0.16918478,118510.0,118500.0,0.00747721]
[1752226901706,0.025314,118510.0,118500.0,0.00747721]
[1752226902092,0.025314,118510.0,118500.0,0.0822493]
[1752226902297,0.19194,118530.0,118500.0,0.3736093]
[1752226902504,0.4,118520.0,118500.0,0.3736093]
[1752226902716,0.425308,118520.0,118500.0,0.3736093]
[1752226902895,0.765308,118520.0,118500.0,0.3736093]
[1752226903344,0.365308,118520.0,118500.0,0.37340031]
[1752226903555,0.365308,118520.0,118510.0,0.05963936]
[1752226903762,0.365308,118520.0,118510.0,0.09548702]
[1752226906570,0.365308,118520.0,118510.0,0.03584766]
[1752226907839,0.765308,118520.0,118510.0,0.03584766]
[1752226908253,0.34,118510.0,118500.0,0.06711657]
[1752226908461,0.3897,118510.0,118500.0,0.21195657]
[1752226908675,0.3897,118510.0,118500.0,0.15231721]
[1752226908882,0.3897,118510.0,118500.0,0.00747721]
[1752226909101,0.3897,118510.0,118500.0,0.15231721]
[1752226914545,0.3897,118510.0,118500.0,0.22688031]
[1752226917500,0.54792085,118510.0,118500.0,0.0745631]
[1752226917703,0.63335078,118510.0,118500.0,0.0745631]
[1752226918152,0.0485,118500.0,118490.0,0.0745631]
[1752226919822,0.06304085,118500.0,118490.0,0.0745631]
[1752226921099,0.047,118490.0,118480.0,0.14344]
[1752226921309,0.047,118490.0,118480.0,0.157784]
[1752226921530,0.0242,118510.0,118480.0,0.24321393]
[1752226921796,0.047,118520.0,118490.0,0.06749346]
[1752226921997,0.025311,118500.0,118490.0,0.06749346]
[1752226922202,0.025311,118500.0,118490.0,0.48744339]
[1752226922387,0.025311,118500.0,118490.0,0.54262213]
[1752226922624,0.4,118520.0,118490.0,0.59262213]
[1752226923063,0.34,118510.0,118490.0,0.59262213]
[1752226924532,0.00853801,118540.0,118510.0,0.0481]
[1752226924689,0.00853801,118540.0,118520.0,0.28616]
[1752226924905,0.025304,118540.0,118520.0,0.32568899]
[1752226925107,0.34,118530.0,118520.0,0.32568899]
[1752226926385,0.362829,118530.0,118520.0,0.32568899]
[1752226928352,0.388136,118530.0,118520.0,0.32568899]
[1752226928997,0.361436,118530.0,118520.0,0.32568899]
[1752226930841,0.336129,118530.0,118520.0,0.32568899]
[1752226931202,0.336129,118530.0,118520.0,0.03952899]
[1752226931402,0.336129,118530.0,118520.0,0.14248]
[1752226931807,0.40855485,118540.0,118520.0,0.14248]
[1752226931997,0.34,118530.0,118520.0,0.16968]
[1752226932412,0.34,118530.0,118520.0,0.14248]
[1752226938776,0.34,118530.0,118510.0,0.05]
[1752226938993,0.0532,118530.0,118510.0,0.01679935]
[1752226939215,0.3932,118530.0,118520.0,0.14152]